fUST/lending_fUST_20250531
["ID","MTS","AMOUNT","RATE_DAILY","PERIOD"]
[363239080,1748638247017,-151.0,0.00018082,2]
[363239082,1748638247027,-151.0,0.00018082,2]
[363239083,1748638247036,-151.0,0.00018082,2]
[363239086,1748638247047,-430.0,0.00018082,2]
[363239087,1748638247056,-430.0,0.00018082,2]
[363239089,1748638247066,-213.683142,0.00018082,2]
[363239091,1748638247075,-213.683142,0.00018082,2]
[363239093,1748638247085,-430.0,0.00018082,2]
[363239095,1748638247094,-2444.844443,0.00018082,2]
[363239097,1748638247103,-2444.844443,0.00018082,2]
[363239099,1748638247112,-151.0,0.00018082,2]
[363239101,1748638247121,-430.0,0.00018082,2]
[363239103,1748638247130,-295.792136,0.00018082,2]
[363239104,1748638247139,-295.792136,0.00018082,2]
[363239105,1748638247147,-1069.46,0.00018082,2]
[363239106,1748638247157,-430.0,0.00018082,2]
[363239107,1748638247166,-907.51,0.00018082,2]
[363239108,1748638247175,-2026.64,0.00018082,2]
[363239109,1748638247184,-563.25,0.00018082,2]
[363239110,1748638247193,-430.0,0.00018082,2]
[363239111,1748638247202,-430.0,0.00018082,2]
[363239112,1748638247211,-939.921018,0.00018082,2]
[363239113,1748638247220,-430.0,0.00018082,2]
[363239114,1748638247230,-939.921018,0.00018082,2]
[363239115,1748638247239,-2791.01,0.00018082,2]
[363239116,1748638247248,-430.0,0.00018082,2]
[363239117,1748638247257,-151.0,0.00018082,2]
[363239118,1748638247266,-840.28,0.00018082,2]
[363239119,1748638247275,-453.67,0.00018082,2]
[363239120,1748638247284,-430.0,0.00018082,2]
[363239121,1748638247294,-432.72,0.00018082,2]
[363239122,1748638247303,-519.87,0.00018082,2]
[363239123,1748638247312,-630.22,0.00018082,2]
[363239124,1748638247321,-799.27,0.00018082,2]
[363239125,1748638247330,-2030.97,0.00018082,2]
[363239126,1748638247339,-2257.3,0.00018082,2]
[363239127,1748638247348,-574.41671104,0.00018082,2]
[363239128,1748638247357,-510.14,0.00018082,2]
[363239129,1748638247366,-3239.69,0.00018082,2]
[363239130,1748638247375,-2215.48,0.00018082,2]
[363239131,1748638247383,-466.31,0.00018082,2]
[363239132,1748638247392,-518.01,0.00018082,2]
[363239133,1748638247402,-622.82,0.00018082,2]
[363239134,1748638247411,-430.0,0.00018082,2]
[363239135,1748638247420,-430.0,0.00018082,2]
[363239136,1748638247429,-636.56,0.00018082,2]
[363239137,1748638247438,-781.28,0.00018082,2]
[363239138,1748638247448,-1403.37,0.00018082,2]
[363239139,1748638247458,-1284.55,0.00018082,2]
[363239140,1748638247468,-1111.19,0.00018082,2]
[363239141,1748638247476,-1294.99,0.00018082,2]
[363239142,1748638247486,-1020.07,0.00018082,2]
[363239143,1748638247495,-430.0,0.00018082,2]
[363239144,1748638247504,-430.0,0.00018082,2]
[363239145,1748638247513,-640.95,0.00018082,2]
[363239146,1748638247522,-430.0,0.00018082,2]
[363239147,1748638247532,-430.0,0.00018082,2]
[363239148,1748638247540,-430.0,0.00018082,2]
[363239149,1748638247550,-1937.74,0.00018082,2]
[363239150,1748638247559,-1672.28,0.00018082,2]
[363239151,1748638247568,-1171.51,0.00018082,2]
[363239152,1748638247580,-860.8394649,0.00018082,2]
[363239153,1748638247594,-998.63634442,0.00018084,5]
[363239154,1748638247603,-384.641853,0.00018091,2]
[363239155,1748638247612,-384.641853,0.00018091,2]
[363239156,1748638247622,-151.0,0.00018091,2]
[363239157,1748638247631,-493.727084,0.00018091,2]
[363239158,1748638247640,-493.727084,0.00018091,2]
[363239159,1748638247649,-253.12139875,0.00018108,2]
[363239160,1748638247660,-1000.0,0.00018108,2]
[363239161,1748638247669,-160.0,0.00018135,2]
[363239162,1748638247678,-800.0,0.0001815,2]
[363239163,1748638247687,-509.269,0.00018159,2]
[363239164,1748638247696,-172.918,0.00018159,2]
[363239165,1748638247705,-2490.385831,0.00018159,2]
[363239166,1748638247714,-323.62785105,0.00018185,2]
[363239167,1748638247723,-800.0,0.0001821,2]
[363239168,1748638247733,-800.0,0.00018223,2]
[363239169,1748638247742,-800.0,0.00018253,2]
[363239170,1748638247751,-3396.40602857,0.00018256,2]
[363239171,1748638247761,-151.0,0.00018273,2]
[363239172,1748638247769,-800.0,0.00018278,2]
[363239173,1748638247779,-151.0,0.00018279,2]
[363239174,1748638247787,-151.0,0.00018279,2]
[363239175,1748638247796,-164.494903,0.00018279,2]
[363239176,1748638247805,-171.956764,0.00018279,2]
[363239177,1748638247814,-171.956764,0.00018279,2]
[363239178,1748638247823,-210.23,0.00018279,2]
[363239179,1748638247833,-210.23,0.00018279,2]
[363239180,1748638247842,-151.0,0.00018279,2]
[363239181,1748638247851,-151.0,0.00018279,2]
[363239182,1748638247860,-151.0,0.00018286,2]
[363239183,1748638247870,-151.0,0.00018286,2]
[363239184,1748638247879,-1205.537788,0.00018293,2]
[363239185,1748638247888,-1205.537788,0.00018293,2]
[363239186,1748638247897,-151.0,0.00018294,2]
[363239187,1748638247907,-5000.0,0.00018294,2]
[363239188,1748638247916,-151.0,0.000183,2]
[363239189,1748638247926,-800.0,0.0001832,2]
[363239190,1748638247935,-151.0,0.00018355,2]
[363239191,1748638247944,-151.0,0.00018355,2]
[363239192,1748638247954,-151.0,0.00018355,2]
[363239193,1748638247963,-231.623872,0.00018355,2]
[363239194,1748638247972,-231.623872,0.00018355,2]
[363239195,1748638247981,-432.280599,0.00018355,2]
[363239196,1748638247991,-432.280599,0.00018355,2]
[363239197,1748638247999,-151.0,0.00018355,2]
[363239198,1748638248008,-151.0,0.00018355,2]
[363239199,1748638248018,-276.720658,0.00018355,2]
[363239200,1748638248027,-276.720658,0.00018355,2]
[363239201,1748638248037,-2211.015349,0.00018355,2]
[363239202,1748638248046,-2211.015349,0.00018355,2]
[363239203,1748638248056,-151.0,0.00018356,2]
[363239204,1748638248065,-430.0,0.00018356,2]
[363239205,1748638248075,-151.0,0.00018356,2]
[363239206,1748638248084,-430.0,0.00018356,2]
[363239207,1748638248093,-430.0,0.00018356,2]
[363239208,1748638248103,-151.0,0.00018356,2]
[363239209,1748638248112,-430.0,0.00018356,2]
[363239210,1748638248121,-160.960903,0.00018356,2]
[363239211,1748638248130,-1069.46,0.00018356,2]
[363239212,1748638248139,-430.0,0.00018356,2]
[363239213,1748638248148,-151.0,0.00018356,2]
[363239214,1748638248157,-907.51,0.00018356,2]
[363239215,1748638248167,-2026.64,0.00018356,2]
[363239216,1748638248176,-563.25,0.00018356,2]
[363239217,1748638248185,-430.0,0.00018356,2]
[363239218,1748638248194,-430.0,0.00018356,2]
[363239219,1748638248204,-430.0,0.00018356,2]
[363239220,1748638248213,-2791.01,0.00018356,2]
[363239221,1748638248222,-430.0,0.00018356,2]
[363239222,1748638248232,-840.28,0.00018356,2]
[363239223,1748638248241,-453.67,0.00018356,2]
[363239224,1748638248250,-430.0,0.00018356,2]
[363239225,1748638248259,-432.72,0.00018356,2]
[363239226,1748638248268,-519.87,0.00018356,2]
[363239227,1748638248277,-151.0,0.00018356,2]
[363239228,1748638248289,-630.22,0.00018356,2]
[363239229,1748638248299,-799.27,0.00018356,2]
[363239230,1748638248308,-2030.97,0.00018356,2]
[363239231,1748638248317,-2257.3,0.00018356,2]
[363239232,1748638248327,-510.14,0.00018356,2]
[363239233,1748638248336,-3239.69,0.00018356,2]
[363239234,1748638248345,-2215.48,0.00018356,2]
[363239235,1748638248355,-466.31,0.00018356,2]
[363239236,1748638248364,-518.01,0.00018356,2]
[363239237,1748638248373,-622.82,0.00018356,2]
[363239238,1748638248382,-430.0,0.00018356,2]
[363239239,1748638248391,-430.0,0.00018356,2]
[363239240,1748638248401,-636.56,0.00018356,2]
[363239241,1748638248411,-781.28,0.00018356,2]
[363239242,1748638248420,-151.0,0.00018356,2]
[363239243,1748638248429,-1403.37,0.00018356,2]
[363239244,1748638248438,-1284.55,0.00018356,2]
[363239245,1748638248447,-1111.19,0.00018356,2]
[363239246,1748638248456,-1294.99,0.00018356,2]
[363239247,1748638248465,-1020.07,0.00018356,2]
[363239248,1748638248474,-430.0,0.00018356,2]
[363239249,1748638248484,-430.0,0.00018356,2]
[363239250,1748638248492,-640.95,0.00018356,2]
[363239251,1748638248501,-430.0,0.00018356,2]
[363239252,1748638248511,-430.0,0.00018356,2]
[363239253,1748638248520,-430.0,0.00018356,2]
[363239254,1748638248529,-1937.74,0.00018356,2]
[363239255,1748638248538,-1672.28,0.00018356,2]
[363239256,1748638248547,-1171.51,0.00018356,2]
[363239257,1748638248556,-378.41083,0.00018356,2]
[363239258,1748638248566,-378.41083,0.00018356,2]
[363239259,1748638248576,-6860.84613718,0.00018383,2]
[363239260,1748638248588,-151.0,0.000184,2]
[363239261,1748638248597,-500.0,0.00018415,2]
[363239262,1748638248606,-13061.26609033,0.00018431,2]
[363239263,1748638248616,-1500.0,0.00018431,2]
[363239264,1748638248625,-26433.10673348,0.00018444,2]
[363239265,1748638248635,-2444.844443,0.00018471,2]
[363239266,1748638248648,-2444.844443,0.00018471,2]
[363239267,1748638248665,-151.0,0.00018471,2]
[363239268,1748638248675,-295.792136,0.00018471,2]
[363239269,1748638248685,-295.792136,0.00018471,2]
[363239270,1748638248694,-939.921018,0.00018471,2]
[363239271,1748638248704,-939.921018,0.00018471,2]
[363239272,1748638248713,-800.0,0.00018477,2]
[363239273,1748638248722,-2800.0,0.00018487,2]
[363239274,1748638248731,-151.0,0.000185,2]
[363239275,1748638248741,-151.0,0.00018555,2]
[363239276,1748638248750,-151.0,0.00018555,2]
[363239277,1748638248759,-151.0,0.000186,2]
[363239278,1748638248768,-208.88167601,0.00018603,2]
[363239279,1748638248778,-608.472011,0.00018615,2]
[363239280,1748638248787,-608.472011,0.00018615,2]
[363239281,1748638248796,-5000.0,0.00018616,2]
[363239282,1748638248806,-608.472011,0.00018616,2]
[363239283,1748638248815,-608.472011,0.00018616,2]
[363239284,1748638248825,-213.683142,0.00018616,2]
[363239285,1748638248834,-213.683142,0.00018616,2]
[363239286,1748638248844,-151.000004,0.00018616,2]
[363239287,1748638248853,-151.0,0.0001863,2]
[363239288,1748638248863,-151.0,0.0001863,2]
[363239289,1748638248872,-151.0,0.0001863,2]
[363239290,1748638248882,-151.0,0.0001863,2]
[363239291,1748638248892,-151.0,0.0001863,2]
[363239292,1748638248901,-222.547482,0.0001863,2]
[363239293,1748638248910,-222.547482,0.0001863,2]
[363239294,1748638248920,-165.983361,0.0001863,2]
[363239295,1748638248929,-165.983361,0.0001863,2]
[363239296,1748638248938,-384.641853,0.0001863,2]
[363239297,1748638248948,-384.641853,0.0001863,2]
[363239298,1748638248957,-151.0,0.0001863,2]
[363239299,1748638248967,-151.0,0.0001863,2]
[363239300,1748638248976,-254.544609,0.0001863,2]
[363239301,1748638248985,-254.544609,0.0001863,2]
[363239302,1748638248995,-493.727084,0.0001863,2]
[363239303,1748638249118,-493.727084,0.0001863,2]
[363239304,1748638249129,-151.0,0.0001863,2]
[363239305,1748638249139,-430.0,0.0001863,2]
[363239306,1748638249149,-430.0,0.0001863,2]
[363239307,1748638249159,-362.56819359,0.0001863,2]
[363239308,1748638249168,-430.0,0.0001863,2]
[363239309,1748638249178,-1069.46,0.0001863,2]
[363239310,1748638249188,-430.0,0.0001863,2]
[363239311,1748638249198,-907.51,0.0001863,2]
[363239312,1748638249208,-2026.64,0.0001863,2]
[363239313,1748638249218,-563.25,0.0001863,2]
[363239314,1748638249227,-430.0,0.0001863,2]
[363239315,1748638249237,-430.0,0.0001863,2]
[363239316,1748638249247,-430.0,0.0001863,2]
[363239317,1748638249256,-430.0,0.0001863,2]
[363239318,1748638249265,-2791.01,0.0001863,2]
[363239319,1748638249274,-840.28,0.0001863,2]
[363239320,1748638249284,-453.67,0.0001863,2]
[363239321,1748638249293,-430.0,0.0001863,2]
[363239322,1748638249302,-432.72,0.0001863,2]
[363239323,1748638249312,-519.87,0.0001863,2]
[363239324,1748638249321,-630.22,0.0001863,2]
[363239325,1748638249330,-799.27,0.0001863,2]
[363239326,1748638249339,-2030.97,0.0001863,2]
[363239327,1748638249348,-2257.3,0.0001863,2]
[363239328,1748638249358,-510.14,0.0001863,2]
[363239329,1748638249367,-3239.69,0.0001863,2]
[363239330,1748638249377,-2215.48,0.0001863,2]
[363239331,1748638249387,-466.31,0.0001863,2]
[363239332,1748638249396,-518.01,0.0001863,2]
[363239333,1748638249405,-622.82,0.0001863,2]
[363239334,1748638249415,-430.0,0.0001863,2]
[363239335,1748638249424,-430.0,0.0001863,2]
[363239336,1748638249433,-636.56,0.0001863,2]
[363239337,1748638249443,-781.28,0.0001863,2]
[363239338,1748638249452,-1403.37,0.0001863,2]
[363239339,1748638249462,-1284.55,0.0001863,2]
[363239340,1748638249472,-1111.19,0.0001863,2]
[363239341,1748638249481,-1294.99,0.0001863,2]
[363239342,1748638249491,-1020.07,0.0001863,2]
[363239343,1748638249500,-430.0,0.0001863,2]
[363239344,1748638249509,-430.0,0.0001863,2]
[363239345,1748638249518,-640.95,0.0001863,2]
[363239346,1748638249525,-430.0,0.0001863,2]
[363239347,1748638249534,-430.0,0.0001863,2]
[363239348,1748638249542,-430.0,0.0001863,2]
[363239349,1748638249550,-1937.74,0.0001863,2]
[363239350,1748638249558,-1672.28,0.0001863,2]
[363239351,1748638249567,-1171.51,0.0001863,2]
[363239352,1748638249575,-208.88167601,0.00018685,2]
[363239353,1748638249588,-151.0,0.00018693,2]
[363239354,1748638249597,-151.0,0.00018693,2]
[363239355,1748638249606,-6860.84613718,0.00018693,2]
[363239356,1748638249615,-155.85259946,0.000187,2]
[363239357,1748638249625,-151.0,0.000187,2]
[363239358,1748638249634,-637.0,0.000187,2]
[363239359,1748638249643,-2176.89934839,0.00018732,10]
[363239360,1748638249653,-500.0,0.00018773,2]
[363239361,1748638249663,-500.0,0.00018773,2]
[363239362,1748638249673,-536.27760095,0.00018773,2]
[363239363,1748638249682,-213.73360797,0.00018773,2]
[363239364,1748638249691,-500.0,0.00018773,2]
[363239365,1748638249700,-500.0,0.00018773,2]
[363239366,1748638249709,-5903.84511482,0.00018783,2]
[363239367,1748638249853,-881.22863858,0.00018783,2]
[363239368,1748638249864,-954.20543836,0.00018783,2]
[363239369,1748638249876,-1998.49179696,0.00018783,2]
[363239370,1748638249890,-441.06599111,0.00018783,2]
[363239371,1748638249899,-151.0,0.00018783,2]
[363239372,1748638249908,-655.837478,0.00018783,2]
[363239373,1748638249918,-655.837478,0.00018783,2]
[363239374,1748638249927,-151.0,0.00018783,2]
[363239375,1748638249936,-151.0,0.00018783,2]
[363239376,1748638249945,-151.0,0.00018783,2]
[363239377,1748638249954,-151.0,0.00018783,2]
[363239378,1748638249963,-1205.537788,0.00018783,2]
[363239379,1748638249972,-417.29888638,0.00018783,2]
[363239380,1748638250346,-300.0,0.00016436,2]
[363239381,1748638250355,-80.52865169,0.00016438,2]
[363239382,1748638250366,-349.47134831,0.00016438,2]
[363239383,1748638250376,-430.0,0.00016438,2]
[363239384,1748638250385,-438.40963712,0.00016711,2]
[363239385,1748638250396,-1848.03076685,0.00016711,2]
[363239386,1748638250405,-2286.44040397,0.00016711,2]
[363239387,1748638250415,-2286.44040397,0.00016711,2]
[363239388,1748638250425,-2286.44040397,0.00016711,2]
[363239389,1748638250434,-2286.44040397,0.00016711,2]
[363239390,1748638250443,-2286.44040397,0.00016711,2]
[363239391,1748638250452,-2286.44040397,0.00016711,2]
[363239392,1748638250461,-2286.44040397,0.00016711,2]
[363239393,1748638250470,-314.23268764,0.00016712,2]
[363239394,1748638250479,-420.0,0.00017962,2]
[363239395,1748638250489,-788.23890162,0.00018783,2]
[363239396,1748638250498,-378.41083,0.00018783,2]
[363239397,1748638250508,-378.41083,0.00018783,2]
[363239398,1748638250517,-208.88167601,0.00018795,2]
[363239399,1748638250526,-8955.39528831,0.000188,3]
[363239400,1748638250538,-24163.98049736,0.000188,3]
[363239401,1748638250547,-13014.21907149,0.000188,2]
[363239402,1748638250559,-790.0325986,0.000188,2]
[363239403,1748638250570,-6895.66280796,0.000188,2]
[363239415,1748639428324,426.685594,0.00013699,2]
[363239427,1748639431958,-5000.0,0.00014547,2]
[363239431,1748639431971,-164.90024098,0.00014694,2]
[363239434,1748639431980,-300.0,0.00014794,2]
[363239436,1748639431990,-300.0,0.00014794,2]
[363239438,1748639431999,-300.0,0.00014794,2]
[363239440,1748639432011,-428.0,0.00014794,2]
[363239442,1748639432020,-500.0,0.00014795,2]
[363239444,1748639432030,-500.0,0.00014795,2]
[363239446,1748639432040,-500.0,0.00014795,2]
[363239448,1748639432050,-500.0,0.00014795,2]
[363239452,1748639432060,-521.12584075,0.00014795,2]
[363239454,1748639432069,-500.0,0.00014795,2]
[363239456,1748639432079,-477.31505793,0.00014795,2]
[363239458,1748639432089,-500.0,0.00014795,2]
[363239460,1748639432099,-153.98685195,0.00014795,2]
[363239463,1748639432109,-500.0,0.00014795,2]
[363239465,1748639432120,-500.0,0.00014795,2]
[363239467,1748639432130,-500.0,0.00014795,2]
[363239469,1748639432139,-500.0,0.00014795,2]
[363239471,1748639432150,-314.61966621,0.00014795,2]
[363239473,1748639432159,-500.0,0.00014795,2]
[363239475,1748639432170,-500.0,0.00014795,2]
[363239477,1748639432181,-500.0,0.00014795,2]
[363239479,1748639432191,-500.0,0.00014795,2]
[363239481,1748639432201,-178.03724869,0.00014795,2]
[363239483,1748639432213,-500.0,0.00014795,2]
[363239485,1748639432223,-500.0,0.00014795,2]
[363239487,1748639432233,-17931.0830275,0.00014796,2]
[363239498,1748639432411,-6968.9169725,0.00014796,2]
[363239499,1748639432420,-200.78402831,0.00014799,2]
[363239500,1748639432430,-164.90024098,0.00014813,2]
[363239501,1748639432439,-164.90024098,0.00014931,2]
[363239502,1748639432449,-300.0,0.00015031,2]
[363239503,1748639432458,-4412.87185793,0.00015032,2]
[363239527,1748639437707,-5069.23752267,0.00015032,2]
[363239528,1748639437717,-333.93164,0.00015267,2]
[363239529,1748639437727,-4032.18709703,0.00015394,2]
[363239530,1748639437737,-1130.18781662,0.00015395,2]
[363239531,1748639437747,-160.0,0.00015395,2]
[363239532,1748639437758,-420.0,0.00016194,2]
[363239533,1748639437767,-420.0,0.00016194,2]
[363239534,1748639437777,-1358.56241146,0.00016338,2]
[363239535,1748639437787,-500.0,0.00016435,2]
[363239536,1748639437796,-914.57989767,0.00016435,2]
[363239537,1748639437806,-914.57989767,0.00016435,2]
[363239538,1748639437814,-127.06162909,0.00016435,2]
[363239539,1748639437826,-787.51826858,0.00016435,2]
[363239540,1748639437835,-500.0,0.00016435,2]
[363239541,1748639437844,-914.57989767,0.00016435,2]
[363239542,1748639437853,-914.57989767,0.00016435,2]
[363239543,1748639437863,-914.57989767,0.00016435,2]
[363239544,1748639437871,-914.57989767,0.00016435,2]
[363239545,1748639437881,-500.0,0.00016435,2]
[363239546,1748639437890,-500.0,0.00016435,2]
[363239547,1748639437899,-914.57989767,0.00016435,2]
[363239548,1748639437908,-242.45532366,0.00016435,2]
[363239549,1748639437917,-914.57989767,0.00016435,2]
[363239550,1748639437926,-914.57989767,0.00016435,2]
[363239551,1748639437935,-914.57989767,0.00016435,2]
[363239552,1748639437944,-914.57989767,0.00016435,2]
[363239553,1748639437953,-914.57989767,0.00016435,2]
[363239554,1748639437964,-914.57989767,0.00016435,2]
[363239555,1748639437973,-430.0,0.00016438,2]
[363239556,1748639437982,-430.0,0.00016438,2]
[363239557,1748639437991,-430.0,0.00016438,2]
[363239558,1748639438000,-430.0,0.00016438,2]
[363239559,1748639438009,-400.0,0.00016438,2]
[363239560,1748639438019,-430.0,0.00016438,2]
[363239561,1748639438028,-151.39860187,0.00016438,2]
[363239562,1748639438039,-430.0,0.00016438,2]
[363239563,1748639438047,-430.0,0.00016438,2]
[363239564,1748639438056,-430.0,0.00016438,2]
[363239565,1748639438065,-433.60472095,0.00016438,2]
[363239566,1748639438075,-430.0,0.00016438,2]
[363239567,1748639438085,-430.0,0.00016438,2]
[363239568,1748639438094,-430.0,0.00016438,2]
[363239569,1748639438104,-430.0,0.00016438,2]
[363239570,1748639438113,-430.0,0.00016438,2]
[363239571,1748639438122,-430.0,0.00016438,2]
[363239572,1748639438131,-430.0,0.00016438,2]
[363239573,1748639438141,-430.0,0.00016438,2]
[363239574,1748639438150,-430.0,0.00016438,2]
[363239575,1748639438159,-430.0,0.00016438,2]
[363239576,1748639438168,-430.0,0.00016438,2]
[363239577,1748639438177,-450.0,0.00016438,2]
[363239578,1748639438187,-430.0,0.00016438,2]
[363239579,1748639438197,-430.0,0.00016438,2]
[363239580,1748639438206,-400.0,0.00016438,2]
[363239581,1748639438215,-430.0,0.00016438,2]
[363239582,1748639438224,-450.0,0.00016438,2]
[363239583,1748639438233,-430.0,0.00016438,2]
[363239584,1748639438243,-430.0,0.00016438,2]
[363239585,1748639438252,-404.04133577,0.00016438,2]
[363239586,1748639438261,-430.0,0.00016438,2]
[363239587,1748639438271,-430.0,0.00016438,2]
[363239588,1748639438280,-294.88729475,0.00016438,2]
[363239589,1748639438297,-430.0,0.00016438,2]
[363239590,1748639438307,-430.0,0.00016438,2]
[363239591,1748639438316,-430.0,0.00016438,2]
[363239592,1748639438332,-430.0,0.00016438,2]
[363239593,1748639438341,-192.67,0.00016438,2]
[363239594,1748639438350,-430.0,0.00016438,2]
[363239595,1748639438359,-430.0,0.00016438,2]
[363239596,1748639438369,-430.0,0.00016438,2]
[363239597,1748639438379,-430.0,0.00016438,2]
[363239598,1748639438389,-430.0,0.00016438,2]
[363239599,1748639438399,-430.0,0.00016438,2]
[363239600,1748639438408,-430.0,0.00016438,2]
[363239601,1748639438557,-430.0,0.00016438,2]
[363239602,1748639438567,-430.0,0.00016438,2]
[363239603,1748639438576,-430.0,0.00016438,2]
[363239604,1748639438586,-430.0,0.00016438,2]
[363239605,1748639438595,-430.0,0.00016438,2]
[363239606,1748639438604,-430.0,0.00016438,2]
[363239607,1748639438614,-430.0,0.00016438,2]
[363239608,1748639438624,-430.0,0.00016438,2]
[363239609,1748639438635,-369.55818577,0.00016438,2]
[363239610,1748639438647,-430.0,0.00016438,2]
[363239611,1748639438656,-430.0,0.00016438,2]
[363239612,1748639438667,-500.0,0.00016438,2]
[363239613,1748639438676,-430.0,0.00016438,2]
[363239614,1748639438686,-430.0,0.00016438,2]
[363239615,1748639438696,-430.0,0.00016438,2]
[363239616,1748639438705,-430.0,0.00016438,2]
[363239617,1748639438715,-430.0,0.00016438,2]
[363239618,1748639438724,-430.0,0.00016438,2]
[363239619,1748639438733,-430.0,0.00016438,2]
[363239620,1748639438743,-430.0,0.00016438,2]
[363239621,1748639438753,-430.0,0.00016438,2]
[363239622,1748639438763,-430.0,0.00016438,2]
[363239623,1748639438772,-430.0,0.00016438,2]
[363239624,1748639438783,-430.0,0.00016438,2]
[363239625,1748639438793,-430.0,0.00016438,2]
[363239626,1748639438802,-430.0,0.00016438,2]
[363239627,1748639438811,-430.0,0.00016438,2]
[363239628,1748639438821,-475.30480707,0.00016438,2]
[363239629,1748639438831,-430.0,0.00016438,2]
[363239630,1748639438841,-430.0,0.00016438,2]
[363239631,1748639438851,-430.0,0.00016438,2]
[363239632,1748639438861,-276.13882674,0.00016438,2]
[363239633,1748639438871,-430.0,0.00016438,2]
[363239634,1748639438880,-430.0,0.00016438,2]
[363239635,1748639438890,-400.0,0.00016438,2]
[363239636,1748639438899,-430.0,0.00016438,2]
[363239637,1748639438909,-430.0,0.00016438,2]
[363239638,1748639438919,-430.0,0.00016438,2]
[363239639,1748639438930,-430.0,0.00016438,2]
[363239640,1748639438939,-430.0,0.00016438,2]
[363239641,1748639438950,-430.0,0.00016438,2]
[363239642,1748639438963,-430.0,0.00016438,2]
[363239643,1748639438972,-430.0,0.00016438,2]
[363239644,1748639438982,-430.0,0.00016438,2]
[363239645,1748639438992,-430.0,0.00016438,2]
[363239646,1748639439002,-450.0,0.00016438,2]
[363239647,1748639439012,-430.0,0.00016438,2]
[363239648,1748639439022,-1534.04,0.00016438,2]
[363239649,1748639439033,-330.15521144,0.00016438,2]
[363239650,1748639439044,-430.0,0.00016438,2]
[363239651,1748639439053,-927.44,0.00016438,2]
[363239652,1748639439062,-430.0,0.00016438,2]
[363239653,1748639439071,-430.0,0.00016438,2]
[363239654,1748639439081,-430.0,0.00016438,2]
[363239655,1748639439090,-430.0,0.00016438,2]
[363239656,1748639439100,-430.0,0.00016438,2]
[363239657,1748639439109,-430.0,0.00016438,2]
[363239658,1748639439119,-430.0,0.00016438,2]
[363239659,1748639439128,-430.0,0.00016438,2]
[363239660,1748639439138,-430.0,0.00016438,2]
[363239661,1748639439148,-430.0,0.00016438,2]
[363239662,1748639439157,-430.0,0.00016438,2]
[363239663,1748639439167,-430.0,0.00016438,2]
[363239664,1748639439176,-430.0,0.00016438,2]
[363239665,1748639439185,-430.0,0.00016438,2]
[363239666,1748639439195,-532.04,0.00016438,2]
[363239668,1748639439204,-878.99,0.00016438,2]
[363239670,1748639439214,-1323.88,0.00016438,2]
[363239671,1748639439224,-924.25,0.00016438,2]
[363239673,1748639439233,-2209.55,0.00016438,2]
[363239674,1748639439243,-430.0,0.00016438,2]
[363239675,1748639439252,-430.0,0.00016438,2]
[363239676,1748639439262,-430.0,0.00016438,2]
[363239677,1748639439272,-430.0,0.00016438,2]
[363239678,1748639439282,-1604.42,0.00016438,2]
[363239679,1748639439292,-430.0,0.00016438,2]
[363239680,1748639439301,-430.0,0.00016438,2]
[363239681,1748639439311,-445.9,0.00016438,2]